bitfinex-derivatives/quotes_BTCF0:USTF0_20251217
["timestamp","ask_amount","ask_price","bid_price","bid_amount"]
[1766008145579,0.0001745,85972.0,85963.0,0.3608]
[1766008147590,0.36312619,85978.0,85970.0,0.0116355]
[1766008147786,0.36312619,85978.0,85967.0,0.011636]
[1766008149089,0.36312619,85978.0,85967.0,0.012636]
[1766008149783,0.36312619,85978.0,85964.0,0.0001745]
[1766008149984,0.3608,85968.0,85964.0,0.0001745]
[1766008151585,0.3608,85968.0,85964.0,4.5e-06]
[1766008151884,0.3608,85968.0,85955.0,0.3724377]
[1766008156089,0.3724359,85968.0,85955.0,0.3608]
[1766008156394,0.3608,85968.0,85955.0,0.3608]
[1766008156896,0.3608,85968.0,85956.0,0.0116375]
[1766008157892,0.3608,85968.0,85957.0,0.0116373]
[1766008159194,0.3608,85968.0,85955.0,0.3608]
[1766008159493,0.3608,85958.0,85953.0,1e-07]
[1766008159698,0.3724373,85958.0,85953.0,1e-07]
[1766008160090,0.3608,85958.0,85953.0,1e-07]
[1766008163090,0.0116362,85966.0,85953.0,1e-07]
[1766008163491,0.3724359,85968.0,85953.0,1e-07]
[1766008166286,0.3724359,85968.0,85953.0,0.0116379]
[1766008166487,0.3608,85968.0,85955.0,0.0116376]
[1766008167091,0.3608,85968.0,85953.0,0.011638]
[1766008168999,0.0116361,85967.0,85953.0,0.011638]
[1766008171303,0.0116363,85966.0,85953.0,1e-07]
[1766008171506,0.0116366,85963.0,85953.0,1e-07]
[1766008173798,0.3608,85968.0,85953.0,1e-07]
[1766008174010,0.3608,85959.0,85953.0,1e-07]
[1766008175107,0.3724371,85959.0,85953.0,1e-07]
[1766008177008,0.3734371,85959.0,85953.0,1e-07]
[1766008178500,0.0116382,85951.0,85940.0,0.69412]
[1766008178705,0.3608,85946.0,85932.0,0.0116407]
[1766008179007,0.3608,85934.0,85930.0,0.0116411]
[1766008179408,0.3608,85934.0,85928.0,0.05476921]
[1766008179609,0.3598,85934.0,85927.0,0.70112]
[1766008180200,0.3598,85934.0,85930.0,0.001]
[1766008181908,0.3598,85934.0,85927.0,0.70212]
[1766008182503,0.3598,85934.0,85927.0,0.70112]
[1766008187209,0.3598,85934.0,85928.0,0.0116413]
[1766008187612,0.3598,85934.0,85930.0,0.011641]
[1766008187808,0.3598,85934.0,85928.0,0.0116413]
[1766008189021,0.3598,85934.0,85927.0,0.70112]
[1766008189612,0.3598,85934.0,85928.0,0.0116413]
[1766008190313,0.3598,85934.0,85927.0,0.70112]
[1766008190707,0.3598,85934.0,85927.0,0.7127614]
[1766008190908,0.3598,85934.0,85927.0,0.70112]
[1766008194020,0.18499939,85940.0,85927.0,0.70112]
[1766008194216,0.3608,85928.0,85927.0,0.70112]
[1766008194416,0.3608,85928.0,85922.0,0.0118165]
[1766008195013,0.3608,85928.0,85924.0,0.0116418]
[1766008195210,0.3608,85928.0,85922.0,0.0001745]
[1766008195610,0.3608,85928.0,85922.0,0.0011745]
[1766008195817,0.3608,85928.0,85923.0,0.011642]
[1766008196112,0.3608,85938.0,85925.0,0.3724417]
[1766008197420,0.3608,85938.0,85925.0,0.3608]
[1766008200217,0.3608,85938.0,85925.0,0.3724417]
[1766008201218,0.0116401,85937.0,85925.0,0.3608]
[1766008201412,0.0116404,85935.0,85925.0,0.3608]
[1766008202019,0.3724401,85938.0,85925.0,0.3618]
[1766008202215,0.3608,85938.0,85925.0,0.3734417]
[1766008202617,0.3608,85938.0,85925.0,0.3724417]
[1766008203216,0.3608,85938.0,85925.0,0.3608]
[1766008203422,0.3608,85938.0,85927.0,0.0116413]
[1766008203819,0.3608,85938.0,85928.0,0.0116412]
[1766008204819,0.3608,85938.0,85925.0,0.3608]
[1766008205022,0.3608,85938.0,85931.0,0.0116408]
[1766008207220,0.3608,85938.0,85933.0,0.0116406]
[1766008208515,0.3608,85938.0,85925.0,0.3608]
[1766008208516,0.0001745,85940.0,85935.0,0.0116403]
[1766008208822,0.14852935,86018.0,85922.0,0.0001745]
[1766008208823,0.19646199,85960.0,85939.0,0.3608]
[1766008209014,0.19646199,85960.0,85950.0,0.3608]
[1766008209015,0.02495417,85959.0,85950.0,0.3608]
[1766008209215,0.02495417,85958.0,85950.0,0.19413]
[1766008209411,0.02495417,85957.0,85939.0,0.3608]
[1766008209726,0.02495417,85956.0,85939.0,0.3609745]
[1766008209924,0.02495417,85955.0,85939.0,0.3609745]
[1766008210124,0.02495417,85954.0,85939.0,0.3609745]
[1766008210429,0.02495417,85953.0,85941.0,0.0116395]
[1766008210616,0.02495417,85952.0,85941.0,0.0116395]
[1766008210816,0.0001745,85957.0,85941.0,0.0116395]
[1766008211118,0.024839,85956.0,85941.0,0.0116395]
[1766008211313,0.024839,85955.0,85941.0,0.0116395]
[1766008211520,0.0116376,85956.0,85939.0,0.3609745]
[1766008211819,0.3608,85954.0,85939.0,0.3609745]
[1766008212020,0.3608,85954.0,85940.0,0.0116397]
[1766008215029,0.3608,85954.0,85942.0,0.0116394]
[1766008216033,0.3609745,85957.0,85943.0,0.3724392]
[1766008216733,0.3609745,85957.0,85943.0,0.3608]
[1766008217237,0.3609745,85957.0,85944.0,0.0116391]
[1766008218030,0.3609745,85957.0,85946.0,0.0116389]
[1766008218634,0.3609745,85957.0,85943.0,0.3608]
[1766008219334,0.3609745,85957.0,85944.0,0.011639]
[1766008220430,0.3609745,85957.0,85946.0,0.0116389]
[1766008221228,0.3609745,85957.0,85943.0,0.3724392]
[1766008221432,0.3609745,85957.0,85943.0,0.3608]
[1766008221837,0.3609745,85957.0,85943.0,0.3724393]
[1766008223238,0.3609745,85957.0,85944.0,0.011639]
[1766008223437,0.3609745,85957.0,85945.0,0.0116389]
[1766008225042,0.0116381,85953.0,85939.0,0.0118142]
[1766008225852,0.0116381,85953.0,85940.0,0.0116396]
[1766008227040,0.18477774,85950.0,85927.0,0.1219]
[1766008227242,0.18477774,85950.0,85912.0,0.3608]
[1766008227243,0.0116411,85930.0,85912.0,0.3608]
[1766008227440,0.18477774,85942.0,85911.0,0.0116435]
[1766008227441,0.3608,85921.0,85911.0,0.0116435]
[1766008228136,0.3608,85921.0,85912.0,0.0116434]
[1766008230439,0.3608,85921.0,85909.0,0.3208038]
[1766008230642,0.3608,85921.0,85911.0,0.0116435]
[1766008230945,0.3608,85921.0,85909.0,0.30916]
[1766008232430,0.3608,85921.0,85910.0,0.0116437]
[1766008232637,0.3608,85921.0,85909.0,0.31016]
[1766008234543,0.3608,85914.0,85909.0,0.31016]
[1766008234736,0.3608,85914.0,85909.0,0.30916]
[1766008235136,0.3608,85914.0,85909.0,0.3208039]
[1766008236235,0.3608,85914.0,85907.0,0.0001745]
[1766008236952,0.3608,85914.0,85907.0,0.0118186]
[1766008238051,0.3608,85914.0,85909.0,0.0116439]
[1766008239350,0.3608,85914.0,85907.0,0.0001745]
[1766008240345,0.3608,85914.0,85907.0,4.5e-06]
[1766008241350,0.3608,85914.0,85908.0,0.011644]
[1766008241951,0.3608,85914.0,85907.0,4.5e-06]
[1766008245740,0.3608,85912.0,85907.0,4.5e-06]
[1766008246641,0.0116436,85911.0,85907.0,4.5e-06]
[1766008246955,0.3608,85912.0,85907.0,4.5e-06]
[1766008247458,0.3618,85912.0,85907.0,4.5e-06]
[1766008248558,0.3618,85912.0,85889.0,0.05541896]
[1766008248758,0.3608,85897.0,85889.0,0.05541896]
[1766008248946,0.3734436,85912.0,85889.0,0.05541896]
[1766008248947,0.3734436,85912.0,85894.0,0.3608]
[1766008249147,0.3724436,85912.0,85894.0,0.3608]
[1766008249350,0.001,85911.0,85894.0,0.3608]
[1766008249550,0.0011746,85911.0,85894.0,0.3608]
[1766008249857,0.0001746,85911.0,85894.0,0.3724459]
[1766008252059,0.0116438,85910.0,85894.0,0.3724459]
[1766008252948,0.0001746,85911.0,85897.0,0.0116455]
[1766008253949,0.0001746,85911.0,85899.0,0.0116452]
[1766008255746,0.0001746,85911.0,85894.0,0.3608]
[1766008255949,0.0001746,85911.0,85895.0,0.0116457]
[1766008256557,0.0001746,85911.0,85897.0,0.0116455]
[1766008257856,0.0001746,85911.0,85894.0,0.3608]
[1766008258557,0.0001746,85911.0,85900.0,0.0116451]
[1766008260458,0.0001746,85911.0,85894.0,0.3608]
[1766008260655,0.18498157,85910.0,85894.0,0.3608]
[1766008260850,0.19662537,85910.0,85894.0,0.3608]
[1766008261055,0.0116438,85910.0,85894.0,0.3608]
[1766008261567,0.0001746,85911.0,85897.0,0.0116455]
[1766008261965,0.0001746,85911.0,85899.0,0.0116452]
[1766008262163,0.0001746,85911.0,85900.0,0.0116451]
[1766008262662,0.0001746,85911.0,85897.0,0.0116454]
[1766008262970,0.0001746,85911.0,85899.0,0.0116452]
[1766008263661,0.0001746,85911.0,85894.0,0.3608]
[1766008264069,0.0116404,85936.0,85916.0,0.0116429]
[1766008264265,0.0116406,85934.0,85919.0,0.3608]
[1766008264569,0.02470443,85933.0,85919.0,0.3608]
[1766008264766,0.02470443,85932.0,85919.0,0.3608]
[1766008264967,0.02470443,85931.0,85919.0,0.3608]
[1766008265169,0.0001746,85934.0,85919.0,0.3608]
[1766008265361,0.02470426,85933.0,85919.0,0.3608]
[1766008265563,0.02470426,85932.0,85919.0,0.3608]
[1766008265760,0.0001746,85934.0,85919.0,0.3608]
[1766008265960,0.02470518,85933.0,85919.0,0.3608]
[1766008266166,0.02470518,85932.0,85919.0,0.3608]
[1766008266470,0.0001746,85934.0,85919.0,0.3608]
[1766008266662,0.02470484,85933.0,85919.0,0.3608]
[1766008266864,0.02470484,85932.0,85919.0,0.3608]
[1766008267155,0.0001746,85934.0,85919.0,0.3608]
[1766008267360,0.03634388,85933.0,85919.0,0.3608]
[1766008267561,0.02470328,85932.0,85919.0,0.3608]
[1766008267758,0.0001746,85934.0,85919.0,0.3724425]
[1766008267963,0.02470433,85933.0,85919.0,0.3608]
[1766008268270,0.02470392,85932.0,85919.0,0.3724425]
[1766008268471,0.0001746,85934.0,85919.0,0.3724425]
[1766008268676,0.02470392,85933.0,85919.0,0.3724425]
[1766008268856,0.02470392,85932.0,85919.0,0.3724425]
[1766008269057,0.0001746,85934.0,85919.0,0.3724425]
[1766008269371,0.02470248,85933.0,85919.0,0.3724425]
[1766008269569,0.18498157,85930.0,85919.0,0.3608]
[1766008270168,0.3608,85927.0,85917.0,0.0001746]
[1766008271073,0.3724415,85927.0,85917.0,0.0001746]
[1766008271574,0.3734415,85927.0,85917.0,0.0001746]
[1766008271872,0.3608,85920.0,85907.0,0.0116441]
[1766008272061,0.3724425,85920.0,85906.0,0.3608]
[1766008272265,0.3724425,85920.0,85906.0,0.3724443]
[1766008272772,0.3724425,85920.0,85906.0,0.3608]
[1766008273565,0.3608,85920.0,85911.0,0.0116436]
[1766008273767,0.3608,85920.0,85906.0,0.3608]
[1766008273768,0.3618,85927.0,85914.0,0.3608]
[1766008273967,0.3618,85927.0,85916.0,0.0116429]
[1766008274164,0.001,85927.0,85914.0,0.3608]
[1766008274364,0.001,85927.0,85922.0,0.3608]
[1766008274674,0.0001746,85934.0,85922.0,0.3608]
[1766008274864,0.0116407,85933.0,85922.0,0.3608]
[1766008275064,0.0118152,85934.0,85922.0,0.3608]
[1766008276075,0.001,85933.0,85922.0,0.3608]
[1766008276475,0.0011746,85934.0,85922.0,0.3724421]
[1766008278075,0.001,85933.0,85922.0,0.3724421]
[1766008278274,0.001,85933.0,85925.0,0.0116416]
[1766008278577,0.0011746,85934.0,85925.0,0.0116416]
[1766008278881,0.00232727,85938.0,85931.0,0.0116409]
[1766008279176,0.0116386,85948.0,85931.0,0.0116409]
[1766008279565,0.3724389,85946.0,85931.0,0.0116409]
[1766008279771,0.001,85934.0,85930.0,0.0001746]
[1766008281473,0.0116394,85942.0,85931.0,0.001]
[1766008281866,0.0116401,85937.0,85930.0,0.0001746]
[1766008282077,0.0116405,85934.0,85922.0,0.3608]
[1766008282371,0.0116405,85934.0,85922.0,0.3724421]
[1766008282878,0.3608,85929.0,85922.0,0.0116421]
[1766008283074,0.3608,85929.0,85919.0,0.0116424]
[1766008283276,0.3608,85929.0,85922.0,0.001]
[1766008284579,0.3608,85929.0,85918.0,0.0116425]
[1766008285169,0.3608,85929.0,85922.0,0.001]
[1766008285776,0.3608,85929.0,85918.0,0.0126425]
[1766008286078,0.3608,85929.0,85920.0,0.0116423]
[1766008286279,0.3608,85929.0,85918.0,0.001]
[1766008286478,0.18487516,85940.0,85928.0,0.3608]
[1766008286774,0.19651496,85940.0,85928.0,0.3608]
[1766008287178,0.01164,85938.0,85928.0,0.3608]
[1766008288184,0.0116399,85939.0,85928.0,0.3608]
[1766008289283,0.0116399,85939.0,85928.0,0.3618]
[1766008291188,0.0116399,85939.0,85928.0,0.3608]
[1766008291388,0.18487516,85940.0,85928.0,0.3618]
[1766008292189,0.18487516,85940.0,85928.0,0.3734412]
[1766008292388,0.18487516,85940.0,85929.0,0.0116411]
[1766008293290,0.372439,85945.0,85932.0,0.0116407]
[1766008293500,0.18487516,85942.0,85933.0,0.0116406]
[1766008293700,0.0246217,85941.0,85933.0,0.0116406]
[1766008293902,0.18487516,85942.0,85933.0,0.0116406]
[1766008294101,0.02462103,85941.0,85933.0,0.0116406]
[1766008294298,0.02462465,85940.0,85931.0,0.0116409]
[1766008294498,0.02462465,85939.0,85931.0,0.0116409]
[1766008294695,0.18487516,85942.0,85935.0,0.3608]
[1766008294898,0.02462455,85941.0,85935.0,0.3608]
[1766008295202,0.02462455,85940.0,85935.0,0.3608]
[1766008295404,0.0116393,85944.0,85935.0,0.3608]
[1766008295605,0.02462251,85943.0,85935.0,0.3608]
[1766008295902,0.02462251,85942.0,85935.0,0.3608]
[1766008296101,0.02462251,85941.0,85935.0,0.3608]
[1766008296304,0.18487516,85945.0,85935.0,0.3608]
[1766008296501,0.02462225,85944.0,85935.0,0.3608]
[1766008296705,0.02462225,85943.0,85935.0,0.3608]
[1766008297000,0.02462225,85942.0,85935.0,0.3608]
[1766008297204,0.02462225,85941.0,85935.0,0.3608]
[1766008297405,0.19651426,85945.0,85935.0,0.3608]
[1766008297592,0.02462196,85944.0,85935.0,0.3608]
[1766008297797,0.02462196,85943.0,85935.0,0.3608]
[1766008298002,0.02462196,85942.0,85935.0,0.3608]
[1766008298203,0.02462196,85941.0,85935.0,0.3608]
[1766008298407,0.0116393,85943.0,85935.0,0.3608]
[1766008298602,0.02462203,85942.0,85935.0,0.3608]
[1766008298802,0.02462203,85941.0,85935.0,0.3608]
[1766008299002,0.18487516,85945.0,85935.0,0.3608]
[1766008299208,0.02462209,85944.0,85935.0,0.3608]
[1766008299399,0.02462209,85943.0,85935.0,0.3608]
[1766008299600,0.02462209,85942.0,85935.0,0.3618]
[1766008299899,0.02462209,85941.0,85935.0,0.3618]
[1766008300094,0.18487516,85945.0,85935.0,0.3618]
[1766008300409,0.0116396,85942.0,85935.0,0.3608]
[1766008300609,0.02462298,85941.0,85935.0,0.3608]
[1766008300811,0.3608,85939.0,85928.0,0.3608]
[1766008301109,0.01164,85938.0,85928.0,0.3608]
[1766008301510,0.3608,85929.0,85921.0,0.0116422]
[1766008301710,0.3608,85929.0,85916.0,0.3608]
[1766008302011,0.3608,85929.0,85920.0,0.0116423]
[1766008302209,0.3608,85929.0,85921.0,0.0116421]
[1766008302597,0.3608,85929.0,85916.0,0.3608]
[1766008302999,0.3608,85929.0,85916.0,0.3724429]
[1766008303412,0.3608,85929.0,85917.0,0.0116428]
[1766008303614,0.3608,85929.0,85921.0,0.001]
[1766008304107,0.3724413,85929.0,85921.0,0.001]
[1766008304309,0.0116415,85928.0,85921.0,0.001]
[1766008305312,0.0116415,85928.0,85916.0,0.3618]
[1766008306013,0.3608,85929.0,85916.0,0.3618]
[1766008306214,0.3724412,85929.0,85916.0,0.3734429]
[1766008307205,0.3724412,85929.0,85916.0,0.3724429]
[1766008307606,0.3724412,85929.0,85916.0,0.3608]
[1766008307808,0.3608,85929.0,85916.0,0.3618]
[1766008308308,0.3608,85929.0,85922.0,0.0116421]
[1766008309211,0.01164,85938.0,85922.0,0.0116421]
[1766008309516,0.02473406,85937.0,85925.0,0.0116416]
[1766008309712,0.02473406,85936.0,85925.0,0.0116416]
[1766008309914,0.3608,85939.0,85925.0,0.0116416]
[1766008310109,0.02473408,85938.0,85933.0,0.0116406]
[1766008310417,0.3609746,85947.0,85933.0,0.0116406]
[1766008310418,0.0001746,85947.0,85938.0,0.0116399]
[1766008310616,0.0001746,85947.0,85933.0,0.3608]
[1766008311006,0.001,85939.0,85933.0,0.3608]
[1766008311514,0.011639,85945.0,85933.0,0.3608]
[1766008311709,0.18487516,85943.0,85933.0,0.3608]
[1766008312319,0.0001746,85947.0,85933.0,0.3608]
[1766008312702,0.18487516,85943.0,85933.0,0.3608]
[1766008313103,0.18487516,85943.0,85933.0,0.3618]
[1766008313611,0.18487516,85943.0,85933.0,0.3608]
[1766008316820,0.3608,85936.0,85927.0,0.0116414]
[1766008317815,0.3608,85936.0,85924.0,0.0116418]
[1766008319421,0.3608,85936.0,85926.0,0.0116415]
[1766008320919,0.3608,85936.0,85926.0,0.0126415]
[1766008323310,0.3608,85946.0,85933.0,0.3608]
[1766008323512,0.3608,85946.0,85936.0,0.0116401]
[1766008323821,0.3608,85946.0,85938.0,0.01164]
[1766008324207,0.3608,85946.0,85935.0,0.0116403]
[1766008326027,0.0001746,85947.0,85935.0,0.0116403]
[1766008326815,0.0001746,85947.0,85941.0,0.3608]
[1766008333133,0.3608,85945.0,85933.0,0.3608]
[1766008333327,0.18484995,85943.0,85933.0,0.3608]
[1766008333632,0.3608,85945.0,85933.0,0.3724405]
[1766008334329,0.3724391,85945.0,85933.0,0.3724405]
[1766008334532,0.3608,85936.0,85931.0,0.0116409]
[1766008336130,0.3608,85945.0,85931.0,0.0116409]
[1766008336334,0.3608,85937.0,85931.0,0.0116409]
[1766008336535,0.3608,85945.0,85921.0,0.3608]
[1766008336536,0.3608,85945.0,85935.0,0.3608]
[1766008337223,0.3608,85945.0,85935.0,0.3724404]
[1766008338018,0.0001746,85947.0,85942.0,0.3608]
[1766008339123,0.0011746,85947.0,85942.0,0.3608]
[1766008339536,0.0001746,85947.0,85942.0,0.3608]
[1766008341132,4.6e-06,85947.0,85942.0,0.3724393]
[1766008342322,4.6e-06,85947.0,85945.0,0.0116389]
[1766008342930,4.6e-06,85947.0,85942.0,0.3608]
[1766008343231,4.6e-06,85947.0,85939.0,0.0116398]
[1766008344135,4.6e-06,85947.0,85936.0,0.00017052]
[1766008344136,4.6e-06,85947.0,85937.0,0.0116401]
[1766008345237,4.6e-06,85947.0,85936.0,0.00017052]
[1766008345438,4.6e-06,85947.0,85937.0,0.0116401]
[1766008345829,4.6e-06,85947.0,85938.0,0.0116398]
[1766008346431,4.6e-06,85947.0,85936.0,0.00017052]
[1766008346432,4.6e-06,85947.0,85936.0,0.01181072]
[1766008347939,4.6e-06,85947.0,85936.0,0.01281072]
[1766008349428,0.1941346,85949.0,85937.0,0.3608]
[1766008349645,0.3608,85958.0,85945.0,0.3608]
[1766008350142,0.3608,85958.0,85945.0,0.3724389]
[1766008350933,0.01161183,85960.0,85946.0,0.0116388]
[1766008351534,0.0001746,85960.0,85946.0,0.0116388]
[1766008352136,0.0001746,85960.0,85946.0,0.0126388]
[1766008353236,0.09420982,85970.0,85959.0,0.3608]
[1766008353440,0.09420982,85970.0,85966.0,0.3608]
[1766008353842,0.0116348,85977.0,85966.0,0.3608]
[1766008354232,0.00232619,85978.0,85966.0,0.3608]
[1766008354432,0.01396079,85978.0,85966.0,0.3608]
[1766008354944,0.0116351,85975.0,85963.0,0.36097449]
[1766008355329,0.0116352,85973.0,85963.0,0.36097449]
[1766008355534,0.3608,85976.0,85963.0,0.36097449]
[1766008355735,0.0116365,85964.0,85943.0,0.3608]
[1766008355942,0.3608,85960.0,85943.0,0.3608]
[1766008356736,0.3608,85960.0,85943.0,0.36097449]
[1766008356737,0.36097449,85960.0,85943.0,0.36097449]
[1766008358240,0.36097449,85960.0,85946.0,0.0116388]
[1766008359847,0.36197449,85960.0,85946.0,0.0116388]
[1766008361643,0.3608,85954.0,85946.0,0.0116388]
[1766008363250,0.3608,85954.0,85943.0,0.01181369]
[1766008364455,0.3608,85954.0,85943.0,0.00017449]
[1766008364654,0.3608,85944.0,85943.0,0.00017449]
[1766008365951,0.0116375,85957.0,85943.0,0.36097449]
[1766008366141,0.001,85954.0,85943.0,0.36097449]
[1766008366542,0.0116375,85957.0,85943.0,0.36097449]
[1766008367845,0.00017449,85960.0,85943.0,0.36097449]
[1766008368649,0.0116378,85954.0,85943.0,0.36097449]
[1766008370663,0.0116375,85957.0,85943.0,0.36097449]
[1766008370860,0.00017449,85960.0,85945.0,0.0116389]
[1766008371060,0.0116375,85956.0,85943.0,0.36097449]
[1766008372156,0.00017449,85960.0,85943.0,0.36097449]
[1766008372157,0.0116372,85959.0,85943.0,0.36097449]
[1766008372856,0.0116374,85957.0,85943.0,0.37261369]
[1766008374754,0.0116376,85956.0,85943.0,0.37261369]
[1766008374954,0.0116381,85952.0,85943.0,0.36097449]
[1766008376355,0.0116381,85952.0,85943.0,0.36197449]
[1766008376866,0.0116381,85952.0,85943.0,0.36097449]
[1766008377866,0.0116377,85955.0,85944.0,0.011639]
[1766008378762,0.0116375,85957.0,85944.0,0.011639]
[1766008379061,0.001,85955.0,85945.0,0.0116389]
[1766008379255,0.0126377,85955.0,85943.0,0.36097449]
[1766008379866,0.0126377,85955.0,85943.0,0.37261369]
[1766008380066,0.0116377,85955.0,85943.0,0.37261369]
[1766008380466,0.001,85957.0,85943.0,0.36097449]
[1766008380655,0.3608,85968.0,85956.0,0.3608]
[1766008380859,0.38384844,85979.0,85956.0,0.3608]
[1766008380860,0.0116364,85965.0,85956.0,0.3608]
[1766008381469,0.0116366,85964.0,85956.0,0.3608]
[1766008381869,0.3608,85966.0,85952.0,0.3608]
[1766008382873,0.001,85964.0,85952.0,0.3608]
[1766008383257,0.3608,85966.0,85952.0,0.3608]
[1766008383461,0.011637,85961.0,85952.0,0.3608]
[1766008383666,0.0116366,85963.0,85952.0,0.3608]
[1766008386771,0.0116372,85959.0,85952.0,0.3608]
[1766008388175,0.0116374,85957.0,85952.0,0.3608]
[1766008389664,0.0116372,85959.0,85952.0,0.3608]
[1766008389866,0.001,85957.0,85952.0,0.3608]
[1766008390066,0.001,85957.0,85947.0,0.0116386]
[1766008391477,0.0116374,85958.0,85947.0,0.0116386]
[1766008393079,0.0116374,85958.0,85948.0,0.3608]
[1766008395672,0.0116374,85958.0,85947.0,0.3608]
[1766008395974,0.3608,85960.0,85951.0,0.0116382]
[1766008396774,0.3608,85960.0,85949.0,0.0116385]
[1766008397173,0.0116367,85963.0,85957.0,0.3608]
[1766008397677,0.0116365,85964.0,85957.0,0.3608]
[1766008397878,0.00017449,85969.0,85957.0,0.3608]
[1766008398266,0.0116365,85964.0,85957.0,0.3608]
[1766008398873,0.0126365,85964.0,85957.0,0.3608]
[1766008400479,0.001,85964.0,85957.0,0.3608]
[1766008402382,0.0126365,85964.0,85957.0,0.3608]
[1766008402575,0.001,85964.0,85957.0,0.3608]
[1766008402980,0.3608,85962.0,85947.0,0.3724386]
[1766008403176,0.3608,85962.0,85947.0,0.3608]
[1766008405274,0.0116372,85959.0,85947.0,0.3724387]
[1766008406472,0.0116369,85961.0,85949.0,0.0116385]
[1766008407483,0.3608,85962.0,85949.0,0.0116385]
[1766008408082,0.0116369,85961.0,85949.0,0.0116385]
[1766008409074,0.0116369,85961.0,85947.0,0.3724387]
[1766008409879,0.0116362,85967.0,85960.0,0.3608]
[1766008410084,0.00017449,85969.0,85960.0,0.3608]
[1766008410275,0.0116361,85967.0,85960.0,0.3608]
[1766008411685,0.01281029,85969.0,85960.0,0.3608]
[1766008411888,0.0116361,85967.0,85960.0,0.3608]
[1766008412684,0.01281029,85969.0,85960.0,0.3608]
[1766008412884,0.001,85967.0,85960.0,0.3608]
[1766008413477,0.011636,85968.0,85960.0,0.3608]
[1766008413672,0.00017449,85969.0,85950.0,0.18475464]
[1766008413888,0.54555464,85960.0,85950.0,0.0116383]
[1766008414079,0.0116371,85959.0,85948.0,0.0116386]
[1766008414882,0.3608,85960.0,85949.0,0.0116384]
[1766008415072,0.3608,85960.0,85952.0,0.011638]
[1766008415277,0.3608,85960.0,85953.0,0.0116378]
[1766008416084,0.3608,85960.0,85953.0,0.0116379]
[1766008416989,0.3618,85960.0,85953.0,0.0116379]
[1766008417482,0.01181039,85969.0,85955.0,0.3724376]
[1766008418280,0.0116361,85967.0,85955.0,0.3608]
[1766008418486,0.00017449,85969.0,85955.0,0.3608]
[1766008419280,0.0116363,85966.0,85955.0,0.3608]
[1766008420188,0.0116363,85965.0,85955.0,0.3608]
[1766008420389,0.0116361,85967.0,85955.0,0.3608]
[1766008420587,0.0116361,85967.0,85955.0,0.3724376]
[1766008424387,0.0116363,85965.0,85955.0,0.3724376]
[1766008424794,0.0116361,85967.0,85955.0,0.3724376]
[1766008427289,0.02304844,85979.0,85962.0,0.3608]
[1766008427493,0.0116357,85970.0,85962.0,0.3608]
[1766008428996,0.3608,85963.0,85957.0,0.00017449]
[1766008430296,0.3608,85963.0,85957.0,0.01181179]
[1766008430486,0.18475464,85972.0,85960.0,0.3608]
[1766008430683,0.0116358,85969.0,85960.0,0.3608]
[1766008432208,0.0126358,85969.0,85960.0,0.3608]
[1766008437202,0.0126358,85969.0,85958.0,0.3608]
[1766008437504,0.001,85969.0,85958.0,0.3608]
[1766008437695,0.001,85969.0,85959.0,0.011637]
[1766008437896,0.001,85969.0,85960.0,0.0116369]
[1766008438499,0.18475464,85970.0,85960.0,0.0116369]
[1766008439105,0.18475464,85970.0,85961.0,0.0116367]
[1766008439313,0.18475464,85971.0,85960.0,0.0116369]
[1766008440404,0.0116354,85972.0,85960.0,0.0116369]
[1766008440806,0.0116354,85972.0,85958.0,0.3608]
[1766008441004,0.0116354,85972.0,85959.0,0.0116371]
[1766008443512,0.18475464,85970.0,85959.0,0.0116371]
[1766008444311,0.01141394,85979.0,85969.0,0.3608]
[1766008444704,0.011635,85975.0,85969.0,0.3608]
[1766008445400,0.01141394,85979.0,85969.0,0.3608]
[1766008445612,0.54555464,85980.0,85969.0,0.3608]
[1766008445815,0.37338154,85980.0,85969.0,0.3608]
[1766008446115,0.0116348,85977.0,85969.0,0.3608]
[1766008446505,0.0116345,85979.0,85969.0,0.3608]
[1766008446713,0.55813618,85980.0,85969.0,0.3608]
[1766008446918,0.3608,85980.0,85971.0,0.0116355]
[1766008447103,0.3608,85980.0,85969.0,0.3724358]
[1766008447908,0.00017449,85981.0,85970.0,0.0116355]
[1766008448115,0.00017449,85981.0,85969.0,0.3608]
[1766008448116,0.00017449,85981.0,85976.0,0.3608]
[1766008448819,4.49e-06,85981.0,85977.0,0.0116347]
[1766008449408,4.49e-06,85981.0,85976.0,0.3608]
[1766008450118,4.49e-06,85981.0,85977.0,0.0116347]
[1766008450620,0.00100449,85981.0,85977.0,0.0116347]
[1766008452007,9e-08,85981.0,85976.0,0.3608]
[1766008452207,0.3608,85994.0,85976.0,0.3608]
[1766008452208,0.3608,85994.0,85980.0,0.0116343]
[1766008452413,0.0116306,86008.0,85994.0,0.0116323]
[1766008452720,0.3608,86005.0,85993.0,0.3724325]
[1766008454219,0.3608,86005.0,85993.0,0.3608]
[1766008456122,0.3724309,86005.0,85993.0,0.3608]
[1766008456422,0.3608,86005.0,85994.0,0.0116324]
[1766008456814,0.3608,86005.0,85993.0,0.3608]
[1766008458325,0.3608,86005.0,85993.0,0.3724325]
[1766008461923,0.3608,86005.0,85993.0,0.3608]
[1766008462240,0.3608,86005.0,85997.0,0.011632]
[1766008463317,0.3608,86005.0,85994.0,0.0116323]
[1766008464023,0.3608,86005.0,85993.0,0.3608]
[1766008464527,0.3608,86005.0,85993.0,0.3724325]
[1766008464716,0.3724309,86005.0,85993.0,0.3608]
[1766008464922,0.0116312,86003.0,85993.0,0.3608]
[1766008466328,0.3608,86005.0,85993.0,0.3608]
[1766008467029,0.3608,86005.0,85996.0,0.011632]
[1766008467332,0.3618,86005.0,85998.0,0.0116318]
[1766008467820,0.3608,86005.0,85998.0,0.0116318]
[1766008468021,0.3618,86005.0,85998.0,0.0116318]
[1766008468519,0.3618,86005.0,86000.0,0.0116316]
[1766008469527,0.00017449,86008.0,86004.0,0.3608]
[1766008470734,0.00232511,86018.0,86015.0,0.0116295]
[1766008470923,1e-08,86018.0,86016.0,0.3608]
[1766008471127,1e-08,86018.0,86017.0,0.3608]
[1766008472226,0.0001156,86026.0,86017.0,0.3608]
[1766008472533,0.0001156,86026.0,86024.0,0.3608]
[1766008473735,0.0011156,86026.0,86024.0,0.3608]
[1766008474235,0.0001156,86026.0,86024.0,0.3608]
[1766008474430,0.0011156,86026.0,86024.0,0.3608]
[1766008475435,0.01268298,86036.0,86024.0,0.3608]
[1766008475640,0.0116266,86037.0,86024.0,0.3608]